bitfinex-derivatives/quotes_ETHF0:USTF0_20241023
["timestamp","ask_amount","ask_price","bid_price","bid_amount"]
[1729706547380,3.2078,2493.2,2493.0,0.40157]
[1729706547381,4.17180167,2493.1,2493.0,0.40157]
[1729706547673,0.40158,2493.0,2492.7,3.2078]
[1729706547877,4.17180167,2493.1,2492.7,3.2078]
[1729706548079,4.17180167,2492.9,2492.8,0.40159]
[1729706548269,3.2078,2492.9,2492.3,3.2078]
[1729706548472,3.86,2492.7,2492.2,3.2078]
[1729706548769,4.28158245,2492.6,2491.7,7.0678]
[1729706548969,4.28158245,2492.6,2492.2,3.2078]
[1729706549166,4.68323245,2492.6,2492.3,0.40168]
[1729706549375,0.5884,2492.5,2491.8,44.0078]
[1729706549675,0.5884,2492.5,2491.8,3.2078]
[1729706549676,8.19192014,2492.4,2491.8,3.2078]
[1729706549872,9.56792014,2492.4,2491.8,3.2078]
[1729706550074,9.56792014,2492.4,2492.1,0.40171]
[1729706550377,3.2078,2492.3,2491.6,1.0045]
[1729706550571,3.2078,2492.3,2491.6,4.2123]
[1729706550876,4.59614345,2492.2,2492.1,0.40171]
[1729706551374,4.19253897,2492.3,2492.2,0.4017]
[1729706551576,3.86,2492.4,2492.0,0.40173]
[1729706551775,3.86,2492.4,2491.7,3.2078]
[1729706551979,8.00813897,2492.3,2491.6,40.8]
[1729706552182,0.5819,2492.2,2492.1,0.40172]
[1729706552575,5.12726004,2492.2,2492.1,0.40172]
[1729706552770,5.12726004,2492.2,2491.6,44.0078]
[1729706553069,5.12726004,2492.2,2492.1,0.40171]
[1729706554576,4.54536004,2492.2,2492.1,0.40171]
[1729706555287,4.24310101,2492.5,2492.4,0.40166]
[1729706555478,4.24310101,2492.3,2492.2,0.4017]
[1729706555679,0.6011,2492.6,2491.9,1.00435]
[1729706555878,4.24310101,2492.5,2492.3,0.40168]
[1729706556181,1.00273,2492.6,2492.3,0.40168]
[1729706556385,4.55872042,2492.5,2492.3,0.40168]
[1729706556883,4.55872042,2492.5,2491.9,4.21215]
[1729706556884,7.872,2492.4,2491.9,3.2078]
[1729706557092,0.40169,2492.3,2492.0,0.40172]
[1729706557292,4.9919635,2492.3,2492.1,0.40171]
[1729706557692,4.0128,2492.2,2491.6,41.80448]
[1729706557889,0.5665,2492.2,2492.1,0.40171]
[1729706558303,8.92984467,2492.2,2491.6,41.80448]
[1729706558492,8.92984467,2492.2,2492.1,0.40171]
[1729706558493,4.91704467,2492.2,2492.1,0.40171]
[1729706558895,4.35054467,2492.2,2492.1,3.60951]
[1729706559291,4.28886797,2492.5,2492.1,3.2078]
[1729706559496,0.6011,2492.6,2492.2,1.00423]
[1729706559703,3.2078,2492.8,2492.1,3.2078]
[1729706559900,0.5797,2492.9,2492.1,3.2078]
[1729706559901,0.5797,2492.9,2492.8,0.4016]
[1729706560400,0.5797,2492.9,2492.0,5.86862]
[1729706560401,9.13462757,2492.9,2492.6,40.8]
[1729706560591,3.2078,2492.8,2492.4,1.00414]
[1729706560795,3.2078,2492.8,2492.6,0.40162]
[1729706560996,4.54372757,2492.7,2492.6,0.40162]
[1729706561601,3.8263,2493.1,2492.4,40.8]
[1729706561797,3.2078,2493.6,2493.5,0.40149]
[1729706561994,4.21618,2493.6,2492.9,4.21175]
[1729706562300,8.79011791,2493.6,2493.3,0.40151]
[1729706562495,0.6039,2493.5,2493.4,0.4015]
[1729706562695,0.6039,2493.5,2493.0,1.00393]
[1729706562696,1.00539,2493.5,2493.3,0.40151]
[1729706562909,5.57932791,2493.5,2493.2,0.40153]
[1729706563101,3.16802576,2493.5,2493.2,0.40153]
[1729706563301,3.56952576,2493.5,2493.2,0.40153]
[1729706563500,0.40152,2493.3,2492.6,4.86405]
[1729706563707,3.2078,2493.3,2492.7,1.00403]
[1729706564010,4.3899002,2493.2,2493.1,0.40155]
[1729706564208,0.77297124,2493.2,2493.1,0.40155]
[1729706564509,4.46083973,2493.4,2493.3,0.40151]
[1729706564710,3.8147,2493.6,2493.3,0.40151]
[1729706565003,4.46083973,2493.4,2493.3,0.40151]
[1729706565194,4.46083973,2493.4,2493.0,1.00391]
[1729706565195,4.46083973,2493.5,2493.4,0.4015]
[1729706565400,4.46083973,2493.5,2493.1,1.00387]
[1729706565401,3.8147,2493.6,2493.5,0.40149]
[1729706565796,8.05193184,2493.6,2493.5,0.40149]
[1729706566007,12.06233184,2493.6,2493.0,0.6225]
[1729706566203,0.40149,2493.5,2493.3,0.4015]
[1729706566507,4.62597161,2493.4,2493.3,0.4015]
[1729706567104,4.62597161,2493.4,2493.0,1.00391]
[1729706567105,4.62597161,2493.5,2493.4,0.4015]
[1729706567302,2.40773221,2493.6,2493.4,0.4015]
[1729706567498,2.40773221,2493.6,2493.1,1.00387]
[1729706567499,0.40149,2493.5,2493.3,0.40151]
[1729706567705,4.89265019,2493.5,2493.3,0.40151]
[1729706568904,4.49116019,2493.5,2493.0,1.00391]
[1729706569110,4.49116019,2493.5,2493.4,0.4015]
[1729706572210,10.95501917,2493.5,2492.9,3.2078]
[1729706572410,3.14,2493.0,2492.9,3.2078]
[1729706572716,3.2078,2493.3,2493.0,0.40156]
[1729706572717,3.14,2493.1,2493.0,0.40156]
[1729706573210,0.40157,2493.0,2492.8,0.40159]
[1729706573515,0.40157,2493.0,2492.4,40.8]
[1729706573516,7.60740078,2492.9,2492.4,40.8]
[1729706573717,7.60740078,2492.9,2492.4,41.80416]
[1729706573718,8.00899078,2492.9,2492.4,41.80416]
[1729706573914,0.4016,2492.8,2492.6,0.40162]
[1729706574213,4.31391376,2492.7,2492.6,0.40162]
[1729706574420,4.71554376,2492.7,2492.5,0.40164]
[1729706574615,4.71552376,2492.8,2492.7,0.40161]
[1729706574916,4.31391376,2492.6,2492.3,4.212]
[1729706575214,0.40162,2492.7,2492.6,0.40163]
[1729706575417,0.40162,2492.7,2492.3,3.2078]
[1729706575613,4.69023182,2492.7,2492.3,3.2078]
[1729706575825,4.28860182,2492.7,2492.6,0.40163]
[1729706576116,0.40161,2492.7,2492.6,0.40163]
[1729706576520,0.40163,2492.6,2492.5,0.40164]
[1729706576710,0.40163,2492.6,2492.2,42.37894]
[1729706576711,4.6101459,2492.7,2492.3,0.40168]
[1729706577022,0.40172,2492.1,2492.0,0.40172]
[1729706577213,6.3478,2492.3,2491.7,4.21224]
[1729706577514,4.33905865,2492.2,2491.7,6.3478]
[1729706577713,4.33905865,2492.2,2492.1,0.40171]
[1729706577915,3.2078,2492.6,2492.1,0.40171]
[1729706578110,0.40166,2492.5,2492.3,0.40167]
[1729706578416,4.50279492,2492.4,2492.3,0.40167]
[1729706578618,4.50279492,2492.5,2492.4,0.40166]
[1729706578920,3.2078,2492.6,2492.4,0.40166]
[1729706579120,4.50279492,2492.5,2492.4,0.40166]
[1729706579314,4.50279492,2492.5,2492.2,0.5847]
[1729706579518,4.50279492,2492.5,2491.2,0.40185]
[1729706579519,0.40183,2491.4,2491.2,0.40185]
[1729706579712,10.9278,2492.3,2491.1,0.40186]
[1729706579713,3.86,2491.3,2491.1,0.40186]
[1729706580017,4.26001236,2491.3,2491.2,0.40186]
[1729706580319,3.2078,2491.6,2491.5,0.40181]
[1729706580521,3.2078,2491.6,2491.3,1.2152]
[1729706580719,7.54815672,2491.6,2491.5,0.40181]
[1729706580915,3.2078,2491.6,2491.5,0.40181]
[1729706581122,3.2078,2491.6,2491.5,4.41541]
[1729706582518,0.4018,2491.7,2491.5,4.0136]
[1729706582721,0.40178,2491.8,2491.6,0.4018]
[1729706582919,3.60956,2491.9,2491.7,0.40178]
[1729706583418,3.2078,2491.9,2491.4,0.5847]
[1729706583822,4.028,2493.4,2491.4,0.5847]
[1729706583823,1.0045,2492.3,2492.1,0.40172]
[1729706584215,4.7091277,2492.2,2492.0,0.40174]
[1729706584413,4.3074177,2492.2,2492.1,40.8]
[1729706584628,4.3074177,2492.2,2492.1,41.20172]
[1729706585131,3.60948,2492.4,2492.1,41.20172]
[1729706585516,4.28094705,2492.3,2492.1,41.20172]
[1729706585721,4.28094705,2492.3,2492.1,40.8]
[1729706585722,0.40171,2492.2,2492.1,40.8]
[1729706586126,4.28094705,2492.2,2492.1,40.8]
[1729706586323,4.28094705,2492.2,2492.1,41.20172]
[1729706586627,7.0678,2492.4,2492.1,40.8]
[1729706586828,3.2078,2492.4,2492.3,0.40169]
[1729706587328,7.84895932,2492.4,2492.3,0.40169]
[1729706588123,7.84895932,2492.4,2492.1,40.8]
[1729706588427,8.25063932,2492.4,2492.2,0.4017]
[1729706588925,3.86,2492.3,2492.1,40.8]
[1729706589128,7.84895932,2492.4,2492.1,40.8]
[1729706589320,3.2078,2492.4,2492.3,0.40169]
[1729706590118,3.2078,2492.4,2492.3,4.41369]
[1729706590426,0.6028,2493.0,2492.8,0.4016]
[1729706590829,4.43382797,2492.9,2492.8,0.40161]
[1729706591724,4.43382797,2492.9,2492.6,0.99953]
[1729706591725,0.40161,2492.8,2492.6,0.99953]
[1729706591930,4.43382797,2492.9,2492.8,0.40161]
[1729706592826,4.83542797,2492.9,2492.7,0.40162]
[1729706593029,4.83542797,2492.9,2492.6,0.99953]
[1729706593229,8.29382797,2492.9,2492.3,3.2078]
[1729706593431,8.29382797,2492.9,2492.5,0.40165]
[1729706593626,0.40162,2492.8,2492.6,0.40164]
[1729706594236,4.43382797,2492.9,2492.3,3.2078]
[1729706594526,4.43382797,2492.9,2492.7,0.40161]
[1729706594731,4.43382797,2492.9,2492.4,1.0042]
[1729706594924,4.43382797,2492.9,2492.8,0.40161]
[1729706595230,4.43382797,2492.9,2492.3,3.2078]
[1729706595231,8.29382797,2492.9,2492.3,3.2078]
[1729706595729,4.43382797,2492.9,2492.8,0.40161]
[1729706596134,3.2078,2493.5,2492.9,0.40159]
[1729706596432,3.2078,2493.8,2493.7,0.40147]
[1729706596632,3.2078,2494.1,2494.0,0.4014]
[1729706597036,3.2078,2494.1,2493.8,41.3946]
[1729706597037,7.2260706,2494.1,2493.8,41.3946]
[1729706597329,7.2260706,2494.1,2494.0,0.40142]
[1729706597535,3.2078,2494.4,2494.3,0.40137]
[1729706597929,7.70680681,2494.4,2494.3,0.40137]
[1729706598936,4.49900681,2494.4,2494.3,0.40137]
[1729706599336,3.2078,2494.5,2494.3,0.40136]
[1729706599529,3.60914,2494.5,2494.3,0.40136]
[1729706599728,4.60768331,2494.4,2494.3,0.40136]
[1729706599935,5.00903331,2494.4,2494.2,0.40139]
[1729706600130,5.00903331,2494.4,2494.2,0.40137]
[1729706600331,4.60768331,2494.4,2494.3,0.40137]
[1729706600527,12.47648331,2494.4,2493.8,0.5946]
[1729706600739,3.60922,2494.0,2493.8,0.99604]
[1729706600941,4.26143,2493.9,2493.6,3.2078]
[1729706601139,4.26143,2493.9,2493.5,0.6096]
[1729706601140,8.82269269,2493.9,2493.7,0.40145]
[1729706601738,8.82269269,2493.9,2493.5,0.6096]
[1729706601739,0.40148,2493.7,2493.5,0.40149]
[1729706601941,3.60928,2493.7,2493.5,0.40149]
[1729706602139,4.33061909,2493.6,2493.5,0.40149]
[1729706602344,8.34101909,2493.6,2492.9,0.5777]
[1729706602639,0.40157,2493.1,2492.8,0.5816]
[1729706602846,4.26155,2493.2,2492.8,0.5816]
[1729706603140,4.64283795,2493.1,2492.9,0.40158]
[1729706603337,4.24126795,2493.1,2492.8,0.5816]
[1729706603535,4.24126795,2493.1,2492.7,44.0078]
[1729706603739,3.86,2492.8,2492.2,0.607]
[1729706604036,3.86,2492.8,2491.8,3.8056]
[1729706604037,0.40171,2492.2,2491.8,3.2078]
[1729706604234,0.40171,2492.2,2492.0,0.40172]
[1729706604439,4.59353902,2492.1,2492.0,0.40172]
[1729706604634,4.59353902,2492.1,2491.8,40.8]
[1729706604835,3.86,2491.9,2491.5,0.607]
[1729706605045,3.2078,2492.0,2491.2,0.40186]
[1729706605046,0.40183,2491.5,2491.2,0.40186]
[1729706605246,7.0678,2491.4,2491.0,0.10487585]
[1729706605545,3.86,2491.1,2491.0,0.10487585]
[1729706605737,0.40188,2491.2,2491.0,0.10487585]
[1729706605942,4.53933496,2491.1,2491.0,0.10487585]
[1729706606148,4.53933496,2491.2,2491.0,0.10487585]
[1729706606341,3.92536885,2491.3,2491.0,0.10487585]
[1729706606541,4.23467826,2491.2,2491.0,0.10487585]
[1729706606743,7.53507527,2491.1,2491.0,0.10487585]
[1729706606950,11.54947527,2491.1,2491.0,0.10487585]
[1729706607149,15.78415353,2491.1,2491.0,0.10487585]
[1729706607458,0.40195,2490.7,2490.3,0.40201]
[1729706607646,3.2078,2490.5,2490.1,0.40204]
[1729706607854,3.60979,2490.5,2490.0,1.19505]
[1729706608048,4.28383486,2490.4,2490.3,0.40201]
[1729706608248,3.2078,2490.5,2490.1,0.40204]
[1729706608548,8.33328379,2490.4,2490.0,0.60206]
[1729706608745,8.33328379,2490.4,2490.0,0.2]
[1729706609145,8.33328379,2490.4,2490.1,40.8]
[1729706609548,4.47328379,2490.4,2490.0,0.2]
[1729706609752,4.47328379,2490.4,2490.1,0.40205]
[1729706610047,4.47328379,2490.4,2490.0,41.40205]
[1729706610249,3.2078,2490.2,2490.0,41.0]
[1729706610652,4.15807207,2490.1,2490.0,41.0]
[1729706611245,3.2078,2490.2,2490.0,41.0]
[1729706611752,4.54586415,2490.1,2490.0,41.0]
[1729706612355,4.54586415,2490.1,2490.0,41.40206]
[1729706612550,3.2078,2490.2,2490.1,0.40205]
[1729706613155,3.2078,2490.2,2490.0,41.0]
[1729706613454,3.2078,2490.2,2490.0,41.40206]
[1729706613649,3.2078,2490.2,2490.1,0.40205]
[1729706615257,3.2078,2490.2,2490.1,4.41805]
[1729706615458,3.2078,2490.7,2490.1,4.016]
[1729706615652,3.2078,2490.7,2490.0,44.2078]
[1729706615653,3.2078,2490.7,2490.0,45.21293]
[1729706615854,3.2078,2490.7,2490.6,0.40197]
[1729706616151,7.42128799,2490.7,2490.6,0.40197]
[1729706616756,3.2078,2490.7,2490.6,0.40197]
[1729706617158,7.74914058,2490.7,2490.0,41.0]
[1729706617361,3.86,2490.6,2490.3,0.40201]
[1729706617657,3.86,2490.6,2490.0,41.0]
[1729706617658,3.2078,2490.7,2490.5,0.40197]
[1729706618055,4.62184763,2490.6,2490.0,44.2078]
[1729706618450,4.62184763,2490.6,2490.5,0.40198]
[1729706619156,9.03901763,2490.6,2490.3,0.402]
[1729706619357,8.48184763,2490.6,2490.0,44.2078]
[1729706619559,4.26203,2490.3,2490.0,0.2]
[1729706619762,7.46985,2490.1,2490.0,0.2]
[1729706619965,0.4021,2489.8,2489.5,0.593]
[1729706620167,3.6099,2489.8,2489.6,40.8]
[1729706620457,9.98283703,2489.7,2488.5,3.2078]
[1729706620653,9.98283703,2489.7,2488.7,0.40227]
[1729706620654,3.86,2489.0,2488.7,0.40227]
[1729706620850,3.2078,2489.1,2488.6,40.8]
[1729706621065,4.26228,2488.7,2488.4,0.40232]
[1729706621358,3.86,2488.7,2488.5,0.40229]
[1729706621548,8.38305946,2488.6,2488.1,40.8]
[1729706621753,4.36465946,2488.6,2488.1,40.8]
[1729706622161,4.36465946,2488.7,2488.2,3.2078]
[1729706622363,3.86,2488.4,2488.1,40.8]
[1729706622656,3.86,2488.2,2487.7,3.2078]
[1729706622962,0.40243,2487.8,2487.4,3.61027]
[1729706623159,0.40243,2487.8,2487.5,40.8]
[1729706623352,4.57559887,2487.7,2487.5,40.8]
[1729706623654,8.18582887,2487.8,2487.2,0.40252]
[1729706623855,4.26244,2487.7,2487.3,0.40249]
[1729706624062,4.26244,2487.7,2487.3,0.4025]
[1729706624261,3.97138582,2487.6,2487.1,3.2078]
[1729706625057,3.2078,2487.8,2487.1,3.2078]
[1729706625258,3.2078,2487.8,2487.7,0.40244]
[1729706625463,3.2078,2488.2,2487.4,4.21399]
[1729706625758,4.29025825,2488.1,2487.7,0.40251]
[1729706625962,7.0678,2487.9,2487.4,3.2078]
[1729706626165,3.86,2487.5,2487.1,3.61041]
[1729706626360,7.5578,2487.6,2486.8,3.2078]
[1729706626571,4.23979005,2487.4,2487.2,0.40259]
[1729706626859,4.64235005,2487.5,2486.8,3.2078]
[1729706627068,4.0208,2487.5,2486.1,0.16346276]
[1729706627258,1.407,2487.8,2485.1,3.2078]
[1729706627259,7.5578,2486.2,2485.1,3.2078]
[1729706627463,18.31839005,2487.4,2484.1,3.37057976]
[1729706627464,7.5578,2485.2,2484.1,3.37057976]
[1729706627665,7.5578,2485.2,2483.4,1.03228891]
[1729706627666,4.35,2485.2,2484.7,0.53776276]
[1729706627966,3.2078,2484.9,2484.8,0.40297]
[1729706628269,7.5578,2484.9,2483.5,3.2078]
[1729706628453,4.35,2484.0,2483.9,0.53776276]
[1729706628764,4.35,2484.0,2483.7,0.53776276]
[1729706628765,4.23979005,2484.0,2483.7,0.53776276]
[1729706628967,3.2078,2483.8,2483.5,0.53776276]
[1729706629260,3.2078,2483.8,2483.1,3.2078]
[1729706629261,4.45931568,2483.7,2483.4,0.4032]
[1729706629459,4.45931568,2483.7,2483.3,0.53776276]
[1729706629661,4.45931568,2483.7,2483.1,40.8]
[1729706629662,3.2078,2483.4,2483.1,40.8]
[1729706630053,3.2078,2483.4,2483.2,0.40325]
[1729706630256,3.2078,2483.4,2483.3,0.40323]
[1729706630464,4.0272,2483.3,2483.2,0.40324]
[1729706630662,4.0272,2483.3,2483.0,0.4]
[1729706630962,3.2078,2483.4,2483.2,0.94100276]
[1729706631269,3.2078,2483.4,2483.3,0.53776276]
[1729706631769,7.235,2483.4,2483.2,0.40324]
[1729706631969,3.2078,2483.4,2483.2,0.53776276]
[1729706632263,4.0272,2483.3,2483.0,0.4]
[1729706632465,4.45931568,2483.7,2482.3,3.2078]
[1729706632466,3.2078,2483.1,2482.3,3.2078]
[1729706632865,3.2078,2483.1,2483.0,0.94104276]
[1729706633273,3.2078,2483.4,2483.0,0.53776276]
[1729706633462,3.2078,2483.4,2483.3,0.40323]
[1729706633661,3.2078,2483.4,2483.2,0.40323]
[1729706633865,4.0272,2483.3,2483.2,0.40324]
[1729706634257,3.2078,2483.4,2483.2,0.94100276]
[1729706634463,3.2078,2483.4,2483.2,0.53776276]
[1729706634664,8.3772,2483.3,2483.0,0.40327]
[1729706634869,4.35,2483.3,2483.1,0.40326]
[1729706635164,5.94231568,2483.7,2483.1,0.40326]
[1729706635165,3.92155292,2483.7,2483.6,0.40318]
[1729706635373,0.54819292,2483.7,2483.6,0.40318]
[1729706635768,4.35,2484.3,2483.6,44.0078]
[1729706636070,3.2078,2484.5,2483.6,40.8]
[1729706636071,4.35,2483.9,2483.6,40.8]
[1729706636266,4.35,2483.9,2483.8,0.40315]
[1729706636461,4.0264,2483.8,2483.7,0.40315]
[1729706636663,4.35,2483.9,2483.8,0.40315]
[1729706636967,4.34556959,2483.9,2483.8,0.40315]
[1729706637169,4.34556959,2483.9,2483.8,7.63735]
[1729706637476,3.49841959,2483.9,2483.8,7.63735]
[1729706637677,3.49841959,2483.9,2483.8,3.61095]
[1729706638169,2.54114959,2483.9,2483.8,7.63735]
[1729706638367,9.59e-06,2483.9,2483.8,7.63735]
[1729706638566,3.36777964,2484.0,2483.9,4.0256]
[1729706638872,4.35,2485.0,2484.9,0.40297]
[1729706639063,4.35,2485.0,2484.8,0.40297]
[1729706639264,4.35,2485.0,2484.3,3.2078]
[1729706639265,4.35,2485.0,2484.9,0.40297]
[1729706639663,8.374,2485.0,2484.3,3.2078]
[1729706639866,4.35,2485.0,2484.9,0.40297]
[1729706640766,4.35,2485.0,2484.3,3.2078]
[1729706640767,0.40301,2484.7,2484.3,3.2078]
[1729706640973,0.40301,2484.7,2483.4,1.00801]
[1729706640974,4.35,2484.5,2483.4,3.2078]
[1729706641169,4.35,2483.5,2483.4,0.40321]
[1729706641370,4.35,2483.8,2483.7,0.40316]
[1729706641575,4.35,2484.1,2483.4,3.2078]
[1729706641874,3.2078,2483.2,2480.4,19.6613]
[1729706642071,3.2078,2478.1,2476.4,1.01125669]
[1729706642279,3.2078,2478.1,2476.3,5.05592678]
[1729706642280,3.2078,2477.5,2475.8,3.17917713]
[1729706642578,3.2078,2475.5,2472.8,40.8]
[1729706642878,3.2078,2475.5,2471.1,14.14110942]
[1729706642879,4.35,2472.9,2471.1,14.14110942]
[1729706643079,4.35,2471.5,2470.0,0.2]
[1729706643269,3.2078,2470.1,2467.8,40.8]
[1729706643474,11.9078,2468.5,2464.9,19.0825]
[1729706643670,11.9078,2468.5,2466.2,0.40602]
[1729706643671,3.2078,2466.5,2466.2,0.40602]
[1729706643868,0.40608,2465.9,2463.4,3.2078]
[1729706644071,4.4,2463.5,2462.9,3.2078]
[1729706644270,9.8078,2463.0,2458.7,0.2]
[1729706644470,0.804,2461.6,2458.7,0.2]
[1729706644666,0.402,2460.9,2458.7,0.2]
[1729706644879,3.2078,2459.7,2453.5,19.0825]
[1729706645079,10.216,2460.8,2455.7,3.2078]
[1729706645080,1.206,2458.7,2455.7,3.2078]
[1729706645276,1.206,2458.7,2452.5,34.907]
[1729706645277,3.2078,2457.1,2454.9,0.40785]
[1729706645571,3.2078,2457.1,2452.4,0.4]
[1729706645572,3.2078,2455.0,2453.5,0.40809]
[1729706645777,4.0118,2454.4,2448.1,34.693]
[1729706646073,3.2078,2452.4,2451.2,3.2078]
[1729706646277,0.54856685,2454.3,2451.7,3.2078]
[1729706646573,0.91601259,2460.3,2453.4,3.2078]
[1729706646878,0.91601259,2460.3,2459.3,8.81]
[1729706646879,0.12,2460.0,2459.3,8.81]
[1729706647067,8.81,2465.8,2459.3,8.81]
[1729706647068,3.2078,2464.5,2459.9,3.2078]
[1729706647269,0.40635,2463.9,2462.2,10.119376]
[1729706647489,0.20400104,2468.5,2462.2,10.119376]
[1729706647490,8.81,2468.4,2462.9,8.81]
[1729706647776,8.81,2468.4,2462.3,0.4064]
[1729706647777,0.402,2467.4,2464.9,4.2232]
[1729706647970,0.40538,2469.8,2467.3,3.2078]
[1729706648171,3.2078,2469.7,2468.5,0.04773671]
[1729706648365,1.01252,2472.0,2468.5,0.04773671]
[1729706648366,0.4054,2469.6,2469.1,5.03135189]
[1729706648566,8.81,2470.3,2468.5,0.04773671]
[1729706648567,4.40578281,2469.7,2469.5,2.27387]
[1729706648773,8.81,2469.6,2468.5,0.04773671]
[1729706648983,8.81,2469.6,2469.5,3.2078]
[1729706649167,4.40578281,2469.6,2469.5,3.37966671]
[1729706649375,17.26538281,2469.6,2469.5,3.2078]
[1729706649673,12.8596,2469.6,2469.5,3.2078]
[1729706649869,4.30209795,2469.6,2469.5,6.58746671]
[1729706650067,17.16169795,2469.6,2469.5,3.2078]
[1729706650273,12.8596,2469.6,2469.5,3.2078]
[1729706650470,13.13318721,2469.6,2468.9,3.2078]
[1729706650679,13.13318721,2469.6,2468.2,3.2078]
[1729706650680,8.81,2469.0,2468.2,3.2078]
[1729706650969,4.32318721,2468.9,2468.2,3.2078]
[1729706651175,3.2078,2469.6,2468.8,10.9714195]
[1729706651365,3.2078,2469.6,2464.8,8.81]
[1729706651366,8.81,2469.6,2469.5,3.2078]
[1729706651569,12.0178,2470.4,2468.8,3.2078]
[1729706651769,2.0239,2473.4,2468.8,3.2078]
[1729706651770,8.81,2469.0,2468.8,3.2078]
[1729706652067,8.81,2469.0,2467.6,3.2078]
[1729706652268,4.66850867,2468.9,2467.9,7.7636195]
[1729706652579,3.2078,2469.1,2467.8,3.2078]
[1729706652580,4.38316314,2469.0,2467.8,3.2078]
[1729706652778,8.81,2467.9,2467.8,3.2078]
[1729706653178,13.19316314,2467.9,2467.8,3.2078]
[1729706653569,13.19316314,2467.9,2467.8,3.16570408]
[1729706653874,4.38316314,2467.9,2467.8,7.21770408]
[1729706654075,8.43516314,2467.9,2467.5,3.2078]
[1729706654275,8.81,2467.6,2464.5,10.137]
[1729706654468,4.27662493,2467.8,2467.5,3.2078]
[1729706654672,4.27662493,2467.5,2467.2,3.2078]
[1729706654870,8.81,2468.3,2467.2,3.2078]
[1729706655077,8.81,2468.3,2467.9,3.2078]
[1729706655376,4.27662493,2468.2,2467.1,3.2078]
[1729706655574,8.81,2467.5,2467.1,3.2078]
[1729706655883,8.81,2467.5,2464.7,15.48065168]
[1729706655884,8.81,2467.5,2467.4,3.2078]
[1729706656076,8.81,2467.5,2466.9,3.2078]
[1729706656077,12.8628,2467.5,2466.9,3.2078]
[1729706656280,8.81,2467.0,2465.7,3.2078]
[1729706656477,8.81,2466.0,2465.7,3.2078]
[1729706656676,8.81,2466.0,2464.1,3.2078]
[1729706656878,4.46567275,2465.9,2464.4,3.2078]
[1729706657072,4.46567275,2465.9,2465.5,3.2078]
[1729706657274,4.46567275,2465.9,2465.8,3.2078]
[1729706657574,3.32921562,2466.1,2466.0,0.40598]
[1729706657776,4.28172562,2466.9,2465.8,3.2078]
[1729706657970,4.28172562,2466.9,2464.5,1.01555]
[1729706657971,4.28172562,2466.9,2466.3,3.2078]
[1729706658177,4.28172562,2466.7,2466.1,3.2078]
[1729706658376,4.28172562,2466.9,2466.4,3.2078]
[1729706658574,3.2078,2467.0,2466.4,3.2078]
[1729706658769,3.2078,2467.0,2466.5,7.2614]
[1729706658976,4.52021804,2466.9,2465.9,3.2078]
[1729706659173,4.52021804,2466.9,2466.5,3.2078]
[1729706659174,4.59169034,2466.9,2466.5,3.2078]
[1729706659482,4.52021804,2466.9,2466.6,4.0536]
[1729706659677,4.52021804,2466.9,2466.6,7.2614]
[1729706659882,4.52021804,2466.9,2466.1,3.2078]
[1729706660077,3.2078,2467.0,2466.4,3.2078]
[1729706660282,0.07147079,2466.9,2466.7,3.2078]
[1729706660475,0.07147079,2466.9,2466.8,0.40584]
[1729706660476,4.50056047,2466.9,2466.8,0.40584]
[1729706660678,0.07147079,2467.2,2467.1,0.4058]
[1729706660977,4.0536,2467.4,2467.1,3.2078]
[1729706661176,4.42908968,2467.2,2467.1,44.0078]
[1729706661376,4.5005728,2467.3,2467.1,44.0078]
[1729706661575,0.07148312,2467.2,2467.1,3.2078]
[1729706661770,4.0536,2467.2,2467.1,3.2078]
[1729706661975,8.44136892,2467.2,2466.7,0.40585]
[1729706662175,3.2078,2467.7,2467.0,3.2078]
[1729706662378,3.2078,2468.2,2467.3,3.2078]
[1729706662573,4.0536,2467.0,2466.7,3.2078]
[1729706662773,4.0536,2467.0,2466.9,0.40582]
[1729706662774,2.3e-07,2467.0,2466.9,0.40582]
[1729706662976,15.57320539,2470.0,2468.2,0.40561]
[1729706662977,3.2078,2469.0,2468.2,0.40561]
[1729706663185,3.2078,2469.0,2466.3,8.81]
[1729706663186,4.0536,2468.4,2468.1,3.2078]
[1729706663487,0.07098318,2468.3,2467.9,3.2078]
[1729706663685,0.07098318,2468.3,2468.2,3.2078]
[1729706663983,0.07098318,2468.3,2466.9,50.944]
[1729706663984,4.0536,2468.1,2467.4,0.40574]
[1729706664175,4.64080264,2468.3,2468.0,3.2078]
[1729706664478,3.2078,2468.6,2467.9,3.2078]
[1729706664677,3.2078,2468.6,2467.0,4.0528]
[1729706664678,0.07098233,2468.9,2468.2,3.2078]
[1729706664880,3.68202329,2468.6,2468.5,3.61337]
[1729706665072,3.68202329,2468.6,2466.9,40.8]
[1729706665073,4.0536,2468.8,2468.1,3.2078]
[1729706665273,4.50557329,2468.6,2468.5,0.40557]
[1729706665475,4.50557329,2468.7,2468.5,4.0512]
[1729706665679,0.07098233,2468.9,2468.5,4.0504]
[1729706665876,4.34570731,2468.8,2468.5,4.0504]
[1729706666189,4.0536,2468.6,2468.3,3.2078]
[1729706666373,3.2078,2468.7,2468.3,3.2078]
[1729706666580,4.57164589,2468.5,2468.3,3.2078]
[1729706666776,4.57164589,2468.5,2467.2,3.2078]
[1729706666994,4.0536,2467.2,2467.1,40.8]
[1729706667190,4.0536,2467.2,2461.6,20.33518]
[1729706667191,3.2078,2467.4,2465.7,3.2078]
[1729706667485,3.2078,2467.4,2463.3,2.0321]
[1729706667486,8.81,2466.0,2465.8,3.2078]
[1729706667686,3.2078,2466.4,2465.9,0.40598]
[1729706667888,3.2078,2466.4,2464.5,10.143]
[1729706667889,3.2078,2467.5,2467.2,0.40578]